bitfinex/quotes_ETHUSD_20220123
["timestamp","ask_amount","ask_price","bid_price","bid_amount"]
[1642924162040,1.0,2496.6,2496.2,1.11703118]
[1642924162239,1.08685181,2496.6,2496.2,1.11703118]
[1642924162439,0.08685181,2496.5,2496.2,1.11703118]
[1642924162842,1.52291345,2496.5,2496.2,1.11703118]
[1642924163080,1.43606164,2496.5,2496.2,1.11703118]
[1642924163482,24.95291345,2496.5,2495.3,3.6076]
[1642924163682,1.73606164,2496.5,2495.3,3.6076]
[1642924164082,1.73606164,2496.5,2495.8,1.25968167]
[1642924164685,1.73606164,2496.5,2496.3,1.10523531]
[1642924164884,1.73606164,2496.5,2495.4,4.15554748]
[1642924165087,1.73606164,2496.5,2495.4,4.45554748]
[1642924165686,1.0,2497.0,2495.4,4.45554748]
[1642924165890,5.20186559,2497.1,2495.4,4.45554748]
[1642924166088,1.0,2497.0,2495.5,1.3]
[1642924166289,26.70210804,2497.0,2495.6,4.38976891]
[1642924166488,0.03213386,2496.9,2495.6,4.68976891]
[1642924166932,4.44888435,2496.8,2496.7,1.33801461]
[1642924167136,5.44888435,2496.8,2496.7,1.33801461]
[1642924167334,1.54888435,2496.8,2495.6,4.69218202]
[1642924167535,3.82099239,2496.8,2495.6,4.69218202]
[1642924167733,3.82099239,2496.8,2495.6,4.68976891]
[1642924168438,1.2635483,2496.1,2495.9,1.4744453]
[1642924169036,1.2635483,2496.1,2495.3,3.6076]
[1642924169437,1.2635483,2496.1,2495.4,1.39812034]
[1642924170238,1.2635483,2496.1,2495.3,3.6076]
[1642924170438,1.0,2496.5,2495.3,3.6076]
[1642924170881,1.3,2496.5,2495.3,3.6076]
[1642924171085,4.25043653,2496.6,2495.3,3.6076]
[1642924171280,0.41883653,2496.6,2496.3,1.253853]
[1642924171480,0.41883653,2496.6,2495.6,1.39581716]
[1642924171481,1.33998233,2496.5,2495.6,1.39581716]
[1642924171680,1.32301325,2496.1,2495.3,3.6076]
[1642924171884,1.32301325,2496.1,2494.8,3.6955]
[1642924171885,0.01275761,2495.9,2494.8,3.6955]
[1642924172085,0.01275761,2495.9,2494.7,1.40411304]
[1642924172380,0.01275761,2495.9,2494.9,0.04035807]
[1642924172782,1.41106206,2495.7,2495.2,1.52889959]
[1642924173781,1.41106206,2495.7,2495.4,1.27624269]
[1642924173981,0.01275761,2495.9,2495.4,1.27624269]
[1642924174183,1.159,2496.0,2495.2,1.52889959]
[1642924175042,1.27182191,2495.8,2495.2,1.52889959]
[1642924176040,1.198,2496.2,2495.2,1.52889959]
[1642924176263,1.198,2496.2,2496.1,1.12894041]
[1642924176439,0.04999999,2496.3,2496.1,1.12894041]
[1642924177040,1.0084378,2496.6,2495.9,1.26781473]
[1642924177341,0.58960127,2496.6,2495.3,4.747]
[1642924177542,0.58960127,2496.6,2495.3,3.747]
[1642924177543,1.00840328,2496.6,2495.3,3.747]
[1642924177942,1.00840328,2496.6,2495.7,1.30923468]
[1642924178595,1.44051602,2496.5,2496.0,1.52415144]
[1642924178799,1.74051602,2496.5,2495.3,3.747]
[1642924178998,4.65310328,2496.6,2495.3,3.747]
[1642924179201,0.58960127,2496.6,2495.4,7.02468953]
[1642924179399,10.78279999,2497.2,2495.5,3.40658667]
[1642924179400,0.58768028,2496.7,2495.5,3.40658667]
[1642924179598,15.72439999,2497.2,2496.5,1.17545694]
[1642924179599,0.41876921,2497.1,2496.5,1.17545694]
[1642924179801,0.41876921,2497.1,2495.5,3.40658667]
[1642924179802,0.41876921,2497.1,2495.8,0.577]
[1642924179999,1.49305448,2496.4,2495.9,1.16985086]
[1642924181001,1.49305448,2496.4,2495.9,2.35543121]
[1642924181204,1.49305448,2496.4,2495.9,1.18558035]
[1642924181601,7.21351712,2497.1,2495.9,1.18558035]
[1642924181841,7.81351712,2497.1,2495.9,1.18558035]
[1642924182538,23.51685181,2497.0,2495.5,0.577]
[1642924182739,1.08977979,2496.4,2495.9,1.36363989]
[1642924183346,1.1672,2496.8,2495.9,1.36363989]
[1642924183643,1.1672,2496.8,2495.9,2.5441552]
[1642924183841,1.1672,2496.8,2496.3,1.16034378]
[1642924184046,1.08685181,2496.9,2495.9,1.36363989]
[1642924184442,1.22975077,2496.6,2495.9,1.36363989]
[1642924185581,0.61994532,2496.8,2495.9,1.36363989]
[1642924185882,0.3,2496.8,2495.9,1.36363989]
[1642924186084,1.7802,2496.9,2495.9,1.36363989]
[1642924186285,1.4802,2496.9,2496.2,1.2905291]
[1642924186488,1.4802,2496.9,2495.9,1.36363989]
[1642924186489,1.17455714,2496.5,2495.9,1.36363989]
[1642924187185,1.17455714,2496.5,2495.4,0.3]
[1642924187386,1.17455714,2496.5,2495.5,3.40657163]
[1642924187585,1.17455714,2496.5,2495.9,1.5]
[1642924187987,1.0,2496.8,2496.2,1.5259685]
[1642924188186,1.7802,2496.9,2495.9,1.5]
[1642924188187,1.1802,2496.9,2496.6,1.11584551]
[1642924188386,1.04695583,2497.0,2496.6,1.11584551]
[1642924188586,6.97019999,2497.2,2496.6,1.11584551]
[1642924188788,0.04999999,2497.2,2496.6,1.11584551]
[1642924188988,2.27196596,2497.1,2496.7,1.44917734]
[1642924189645,2.27196596,2497.1,2496.0,1.0]
[1642924189842,2.27196596,2497.1,2496.0,1.3]
[1642924190542,1.47173246,2496.9,2496.4,1.32193656]
[1642924191347,1.47173246,2496.9,2496.3,1.48206339]
[1642924191549,1.47173246,2496.9,2495.9,1.5]
[1642924191747,5.71486188,2496.8,2495.9,1.5]
[1642924191950,23.43,2496.7,2495.9,1.5]
[1642924192146,0.08685181,2496.7,2495.9,1.5]
[1642924192346,1.39176453,2496.4,2495.9,1.5]
[1642924192748,0.08685181,2496.6,2496.0,1.4487879]
[1642924193590,1.0,2497.0,2496.0,1.4487879]
[1642924193792,1.14657311,2496.7,2496.2,1.51770492]
[1642924194288,1.14657311,2496.7,2496.0,1.4487879]
[1642924194491,1.74657311,2496.7,2496.0,1.4487879]
[1642924195089,1.14657311,2496.7,2496.0,1.4487879]
[1642924195289,1.14657311,2496.7,2495.9,1.5]
[1642924195491,1.47977836,2496.2,2495.9,1.5]
[1642924196191,1.1566,2496.7,2495.9,1.5]
[1642924196592,2.7566,2496.7,2495.9,1.5]
[1642924197235,1.2897013,2496.2,2495.9,1.5]
[1642924197836,2.7566,2496.7,2495.9,1.5]
[1642924198440,1.1566,2496.7,2495.9,1.5]
[1642924198640,6.38072426,2496.6,2495.9,1.5]
[1642924198842,5.38072426,2496.6,2495.9,1.5]
[1642924199043,1.3,2496.5,2495.9,1.5]
[1642924199245,1.3,2496.5,2495.9,1.4]
[1642924200041,1.33635862,2496.0,2495.9,1.4]
[1642924201283,6.38635862,2496.0,2495.9,1.4]
[1642924201489,1.33635862,2496.0,2495.9,1.4]
[1642924201881,1.63635862,2496.0,2495.9,1.4]
[1642924202081,1.33635862,2496.0,2495.9,1.4]
[1642924202285,4.48635862,2496.0,2495.9,1.4]
[1642924202685,5.48635862,2496.0,2495.9,1.4]
[1642924203587,5.18635862,2496.0,2495.9,1.4]
[1642924203787,2.63635862,2496.0,2495.9,1.4]
[1642924203987,2.93635862,2496.0,2495.9,1.4]
[1642924204186,8.84997177,2496.0,2495.9,1.4]
[1642924204848,3.35525893,2496.0,2495.9,1.4]
[1642924205042,2.35525893,2496.0,2495.9,1.4]
[1642924205244,5.45525893,2496.0,2495.9,1.4]
[1642924205443,1.75525893,2496.0,2495.9,1.4]
[1642924206342,11.17200054,2496.0,2495.9,1.4]
[1642924206744,5.95525893,2496.0,2495.9,1.4]
[1642924206944,1.75525893,2496.0,2495.9,1.4]
[1642924207946,1.7232422,2496.0,2495.9,1.4]
[1642924209401,5.7232422,2496.0,2495.9,1.4]
[1642924209698,4.5,2495.9,2494.8,1.28131318]
[1642924209907,5.7266499,2495.8,2494.9,1.28869459]
[1642924210099,5.7266499,2495.8,2495.0,3.4072429]
[1642924210602,1.52307239,2495.3,2495.0,3.4072429]
[1642924210800,1.11129997,2495.6,2495.3,2.11127785]
[1642924213643,1.11129997,2495.6,2495.3,2.06127785]
[1642924213845,4.75,2495.4,2494.2,0.00230019]
[1642924214046,4.75,2495.4,2494.1,4.53917046]
[1642924214047,0.0121277,2494.6,2494.1,3.94924905]
[1642924214246,0.04190303,2494.5,2494.4,3.40803877]
[1642924214447,0.3466277,2494.6,2493.9,0.00230019]
[1642924214648,0.3466277,2494.6,2493.3,3.40888073]
[1642924214649,0.3345,2494.6,2493.3,3.40888073]
[1642924214847,1.24162375,2494.5,2493.8,1.33995254]
[1642924215050,0.08685181,2494.5,2493.5,1.39375623]
[1642924215249,23.51685181,2494.4,2493.2,0.01206039]
[1642924215450,23.51685181,2494.4,2493.0,3.8871]
[1642924215451,0.08685181,2494.4,2493.0,3.8871]
[1642924215683,0.38685181,2494.4,2493.3,0.01279613]
[1642924215884,23.47980522,2494.5,2493.3,0.01279613]
[1642924216085,2.69292003,2494.3,2493.3,0.01279613]
[1642924216285,5.93633601,2494.2,2493.3,0.01279613]
[1642924216490,1.0,2494.2,2493.3,0.01279613]
[1642924216891,1.0,2494.2,2493.4,1.38099355]
[1642924217091,1.3,2494.2,2493.3,1.11620521]
[1642924217294,0.08685181,2494.1,2492.7,3.7513]
[1642924217493,1.73819997,2494.2,2492.7,3.7513]
[1642924217895,1.43819997,2494.2,2492.7,3.7513]
[1642924218094,1.43819997,2494.2,2493.1,1.35487891]
[1642924218095,2.95094122,2494.2,2493.1,1.35487891]
[1642924218296,2.95094122,2494.2,2492.7,3.7513]
[1642924218495,3.25094122,2494.2,2492.7,3.7513]
[1642924218695,26.68094122,2494.2,2492.7,3.7513]
[1642924218996,23.43,2494.0,2492.7,3.7513]
[1642924219333,1.42335195,2493.8,2492.8,1.45338028]
[1642924219538,1.42335195,2493.8,2492.5,1.27790938]
[1642924219539,0.3,2493.7,2492.5,1.27790938]
[1642924219740,24.007,2493.6,2492.0,7.99648313]
[1642924219940,25.2368,2493.6,2492.0,7.99648313]
[1642924220138,1.0,2493.5,2492.0,7.99418294]
[1642924220340,0.577,2493.5,2492.0,7.99418294]
[1642924220538,0.3,2493.5,2492.0,7.99418294]
[1642924220738,1.31285776,2493.5,2492.5,1.22055279]
[1642924220940,1.31285776,2493.5,2492.9,1.1147296]
[1642924221141,1.3,2493.5,2492.9,1.0147296]
[1642924221341,1.3,2493.5,2492.0,7.99418294]
[1642924221342,0.10266001,2493.3,2492.0,7.99418294]
[1642924221740,2.2338,2493.6,2492.7,1.12768172]
[1642924221941,2.5338,2493.6,2492.7,1.12768172]
[1642924222141,2.5338,2493.6,2492.1,3.8195]
[1642924222340,1.0,2493.5,2492.0,3.6895]
[1642924222742,1.24166267,2492.7,2491.9,1.218]
[1642924223104,25.007,2493.5,2491.8,0.01246768]
[1642924223105,26.7773,2493.4,2491.8,0.01246768]
[1642924223293,27.0773,2493.4,2491.8,0.01246768]
[1642924223495,6.1525,2493.3,2492.3,1.54823351]
[1642924223695,2.2353,2493.3,2492.3,1.54823351]
[1642924223895,2.62215181,2493.3,2491.8,0.01246768]
[1642924224096,1.25841736,2492.7,2492.4,1.36056466]
[1642924224300,26.05215181,2493.3,2492.4,1.36056466]
[1642924224301,2.62215181,2493.3,2492.4,1.36056466]
[1642924224596,2.5353,2493.3,2492.4,1.36056466]
[1642924224997,2.5353,2493.3,2492.4,2.53508328]
[1642924224998,1.2353,2493.3,2492.4,2.53508328]
[1642924225400,1.55878398,2492.9,2492.4,2.53508328]
[1642924225601,1.2353,2493.3,2492.4,2.53508328]
[1642924226002,0.012,2493.4,2492.5,4.59064173]
[1642924226201,0.012,2493.4,2492.5,5.60309693]
[1642924226599,0.012,2493.4,2492.6,0.577]
[1642924226838,0.012,2493.4,2493.3,1.53329105]
[1642924227042,0.012,2493.4,2492.7,4.30468294]
[1642924227243,0.012,2493.4,2492.7,5.48168294]
[1642924227442,0.012,2493.4,2492.7,1.177]
[1642924227745,0.012,2493.4,2493.3,1.25997341]
[1642924227943,0.012,2493.4,2492.6,3.6921]
[1642924227944,0.012,2493.4,2492.9,1.47412929]
[1642924228441,0.012,2493.4,2492.5,0.0124552]
[1642924228741,0.012,2493.4,2492.5,1.0124552]
[1642924229342,1.1716509,2493.2,2492.5,1.0124552]
[1642924229542,0.012,2493.4,2492.8,1.30366952]
[1642924229742,4.012,2493.4,2492.8,1.30366952]
[1642924230595,4.012,2493.4,2493.3,1.18940559]
[1642924230987,4.012,2493.4,2493.3,2.4481236]
[1642924231191,0.37472471,2493.4,2493.3,2.4481236]
[1642924231789,0.37472471,2493.4,2492.7,0.19975]
[1642924232393,0.37472471,2493.4,2492.8,0.577]
[1642924232689,0.37472471,2493.4,2492.9,0.19975]
[1642924232891,0.37472471,2493.4,2493.0,2.31154471]
[1642924233792,0.37472471,2493.4,2492.5,0.0124552]
[1642924233793,1.89392377,2493.4,2492.5,0.0124552]
[1642924234440,1.89392377,2493.4,2492.4,0.5394552]
[1642924235042,0.37472471,2493.4,2493.1,1.32576105]
[1642924235242,0.37472471,2493.4,2493.1,1.62576105]
[1642924235447,0.37472471,2493.4,2493.1,1.92576105]
[1642924235641,0.37472471,2493.4,2493.1,3.50276105]
[1642924235848,0.37472471,2493.4,2493.1,2.50276105]
[1642924236141,0.37472471,2493.4,2493.2,1.0]
[1642924238393,0.37472471,2493.4,2493.1,1.90276105]
[1642924238589,0.37472471,2493.4,2493.1,1.32576105]
[1642924242843,0.37472471,2493.4,2493.1,1.62576105]
[1642924243044,0.37472471,2493.4,2493.1,2.92576105]
[1642924243347,0.37472471,2493.4,2493.1,1.32576105]
[1642924245348,0.37472471,2493.4,2492.6,0.21189797]
[1642924245607,0.37472471,2493.4,2492.3,1.0464]
[1642924245799,0.37472471,2493.4,2492.4,3.41039018]
[1642924246103,0.37472471,2493.4,2492.4,8.14203788]
[1642924246299,0.37472471,2493.4,2492.5,3.41039018]
[1642924246499,0.37472471,2493.4,2492.6,5.74155241]
[1642924246700,0.37472471,2493.4,2492.7,3.41039018]
[1642924246898,0.37472471,2493.4,2492.8,0.19975]
[1642924247099,0.13072471,2493.4,2492.7,1.577]
[1642924247599,0.13072471,2493.4,2493.3,2.49689643]
[1642924248202,0.13072471,2493.4,2492.7,1.0]
[1642924248401,0.13072471,2493.4,2492.5,3.9101]
[1642924248604,0.13072471,2493.4,2492.3,2.26188796]
[1642924248799,0.13072471,2493.4,2492.4,3.41040973]
[1642924249451,0.13072471,2493.4,2493.3,1.46602705]
[1642924251753,0.13072471,2493.4,2492.3,3.76163796]
[1642924251953,0.13072471,2493.4,2492.4,3.41030078]
[1642924252559,0.13072471,2493.4,2492.5,1.0]
[1642924252758,0.13072471,2493.4,2492.6,3.41030078]
[1642924253588,0.13072471,2493.4,2492.7,1.45068604]
[1642924253790,0.13072471,2493.4,2493.2,0.97192086]
[1642924255390,0.13072471,2493.4,2492.5,0.877]
[1642924255391,0.13072471,2493.4,2492.5,1.177]
[1642924255592,0.13072471,2493.4,2492.6,3.41020628]
[1642924256192,0.13072471,2493.4,2492.6,3.90995628]
[1642924256394,0.13072471,2493.4,2493.2,1.16589415]
[1642924256841,1.65125039,2493.4,2493.2,1.16589415]
[1642924257138,0.13072471,2493.4,2493.2,1.16589415]
[1642924257339,1.1529,2493.7,2493.4,0.26144942]
[1642924258339,0.60791864,2493.9,2493.4,0.26144942]
[1642924258739,1.26408588,2493.8,2493.4,0.26144942]
[1642924260147,0.60791864,2493.9,2493.4,0.26144942]
[1642924262491,1.55762359,2493.6,2493.4,0.26144942]
[1642924262691,0.60791864,2493.9,2493.4,0.26144942]
[1642924262896,4.60791864,2493.9,2493.4,0.26144942]
[1642924263894,4.60791864,2493.9,2493.7,1.05953117]
[1642924264841,4.60791864,2493.9,2493.4,0.26144942]
[1642924267841,1.13346509,2493.5,2493.4,0.26144942]
[1642924268097,4.60791864,2493.9,2493.4,0.26144942]
[1642924268098,5.73731864,2493.9,2493.4,0.26144942]
[1642924269300,1.48190076,2493.8,2493.4,0.26144942]
[1642924270505,1.46079146,2493.1,2492.5,0.00230019]
[1642924270707,1.46079146,2493.1,2492.3,1.47749993]
[1642924270904,1.46079146,2493.1,2492.2,1.47749993]
[1642924271306,1.46079146,2493.1,2492.2,4.88821483]
[1642924271504,1.2143,2493.4,2492.3,3.4107149]
[1642924271705,1.2143,2493.4,2492.4,4.68908037]
[1642924271936,1.2143,2493.4,2492.5,3.4107149]
[1642924272139,24.82182573,2493.3,2492.5,3.4107149]
[1642924272335,1.39182573,2493.3,2492.5,3.4107149]
[1642924272538,1.39182573,2493.3,2492.8,1.09604412]
[1642924272539,1.32549329,2493.1,2492.8,1.09604412]
[1642924272735,1.32549329,2493.1,2492.1,1.47749993]
[1642924272942,1.32549329,2493.1,2492.0,4.88855864]
[1642924272943,25.99679329,2493.1,2492.0,4.88855864]
[1642924273140,25.99679329,2493.1,2492.1,3.41105871]
[1642924273744,1.43254267,2492.6,2492.1,3.41105871]
[1642924273942,1.43254267,2492.6,2492.2,3.41105871]
[1642924274140,1.43254267,2492.6,2492.3,3.41105871]
[1642924274343,1.43254267,2492.6,2491.8,4.28142676]
[1642924274749,1.43254267,2492.6,2492.0,1.09570081]
[1642924274943,1.43254267,2492.6,2492.1,3.41145855]
[1642924275142,1.43254267,2492.6,2492.0,1.09570081]
[1642924275346,1.12500684,2492.2,2491.6,4.28142676]
[1642924275606,1.12500684,2492.2,2491.2,0.02]
[1642924275607,0.02712976,2491.6,2491.2,0.02]
[1642924275792,1.01718721,2491.7,2491.2,0.02]
[1642924275993,1.01718721,2491.7,2490.7,0.02]
[1642924275994,4.5,2491.6,2490.7,0.02]
[1642924276192,1.3,2491.9,2490.7,0.02]
[1642924276395,1.26193304,2491.5,2491.1,2.23776384]
[1642924276994,1.26193304,2491.5,2491.1,1.0987257]
[1642924277194,1.26193304,2491.5,2490.7,0.02]
[1642924278095,5.34484466,2491.4,2490.8,1.40479268]
[1642924278298,1.26193304,2491.5,2490.8,1.40479268]
[1642924278495,1.86193304,2491.5,2490.8,0.02]
[1642924278695,2.86193304,2491.5,2490.8,0.02]
[1642924278896,5.17990846,2491.4,2490.8,0.02]
[1642924279337,6.32520846,2491.4,2490.8,0.02]
[1642924279543,1.0,2491.3,2490.8,0.02]
[1642924279742,4.75,2491.1,2490.6,0.01]
[1642924279950,5.00279455,2491.0,2490.6,0.01]
[1642924280144,6.79219924,2491.0,2490.6,0.01]
[1642924280342,1.0,2490.9,2490.6,0.01]
[1642924280544,1.78940469,2491.0,2490.3,1.27664916]
[1642924280545,1.15563543,2490.6,2490.3,1.27664916]
[1642924280746,5.21291603,2490.9,2490.6,2.31127085]
[1642924280950,0.6,2491.0,2490.6,2.31127085]
[1642924281145,1.0,2491.1,2490.6,2.11127085]
[1642924281348,1.6,2491.1,2490.6,2.11127085]
[1642924281544,0.3,2491.1,2490.6,2.11127085]
[1642924282147,0.6,2491.2,2490.6,2.11127085]
[1642924282347,0.41974101,2491.1,2490.6,2.11127085]
[1642924282747,1.31914224,2490.8,2490.6,2.11127085]
[1642924283190,5.71974101,2491.1,2490.6,2.11127085]
[1642924283392,4.71974101,2491.1,2490.6,2.11127085]
[1642924283589,1.3,2491.0,2490.6,2.11127085]
[1642924283789,5.17034525,2490.9,2490.6,2.11127085]
[1642924283989,1.3,2491.0,2490.6,2.11127085]
[1642924284995,1.71763113,2490.9,2490.6,2.11127085]
[1642924285393,6.84215797,2490.9,2490.6,2.11127085]
[1642924285595,1.0,2490.8,2490.6,2.11127085]
[1642924285794,5.39871867,2490.7,2490.6,2.11127085]
[1642924285994,5.99871867,2490.7,2490.6,2.11127085]
[1642924286195,6.99871867,2490.7,2490.6,2.11127085]
[1642924286395,1.6,2490.7,2490.6,2.11127085]
[1642924286697,7.90710202,2490.7,2490.6,2.11127085]
[1642924286948,8.90710202,2490.7,2490.6,2.11127085]
[1642924287146,3.87743096,2490.7,2490.6,2.11127085]
[1642924287750,1.6,2490.7,2490.6,2.11127085]
[1642924288146,0.6,2490.7,2490.6,2.11127085]
[1642924288348,0.3,2490.7,2490.6,2.11127085]
[1642924288550,1.6,2490.8,2490.6,2.06127085]
[1642924289050,1.0,2490.8,2490.6,2.06127085]
[1642924289451,5.16699346,2490.8,2490.6,2.06127085]
[1642924289652,4.3,2490.7,2490.6,2.06127085]
[1642924289951,4.43234273,2491.1,2490.6,3.40967651]
[1642924290153,4.43234273,2491.1,2490.7,4.24506832]
[1642924290154,4.41974101,2491.1,2490.7,4.24506832]
[1642924290359,4.41974101,2491.1,2490.6,3.40967651]
[1642924290995,4.75,2491.0,2489.9,0.02]
[1642924291195,0.03663094,2490.9,2489.9,0.02]
[1642924291394,5.30213094,2490.9,2489.9,0.02]
[1642924291998,1.43976113,2490.6,2489.9,0.02]
[1642924292397,0.6,2490.6,2489.9,0.02]
[1642924292597,4.5655,2490.9,2489.9,0.02]
[1642924292797,1.0,2490.8,2489.9,0.02]
[1642924293200,1.3,2490.8,2489.9,0.02]
[1642924293397,0.41974101,2491.1,2490.4,1.09831374]
[1642924293601,1.66284101,2491.1,2490.4,1.09831374]
[1642924294446,1.66284101,2491.1,2491.0,1.53728205]
[1642924294646,0.41974101,2491.1,2490.2,0.01233275]
[1642924294847,0.41974101,2491.1,2490.1,4.24445722]
[1642924295049,4.4992,2491.2,2490.0,4.471]
[1642924295247,4.4992,2491.2,2490.1,4.24445722]
[1642924295447,4.4992,2491.2,2490.0,3.894]
[1642924295650,1.12290994,2490.8,2490.0,3.894]
[1642924295849,1.42290994,2490.8,2490.0,3.894]
[1642924296050,2.72290994,2490.8,2489.9,1.33707098]
[1642924296648,1.0,2490.7,2490.2,1.23883597]
[1642924297049,1.72290994,2490.8,2489.9,0.02]
[1642924297249,0.3,2491.0,2489.9,0.02]
[1642924297448,0.3,2491.0,2489.9,0.03225818]
[1642924297649,5.548672,2491.2,2490.0,0.577]
[1642924298107,4.4992,2491.2,2490.0,0.577]
[1642924298501,1.18997003,2491.1,2490.0,0.577]
[1642924298906,1.6,2491.1,2490.0,0.577]
[1642924299304,1.6,2491.1,2490.7,1.08556161]
[1642924300003,0.3,2491.1,2490.7,1.08556161]
[1642924300204,1.3,2491.1,2490.9,1.2810408]
[1642924300604,0.3,2491.1,2490.9,1.2810408]
[1642924300809,1.3,2491.1,2490.1,4.03499835]
[1642924301007,1.3,2491.1,2490.0,0.577]
[1642924301420,1.0,2491.1,2490.0,0.577]
[1642924301605,3.10491661,2491.2,2490.0,0.577]
[1642924301842,3.10491661,2491.2,2490.7,1.17670675]
[1642924302444,3.10491661,2491.2,2490.4,1.27980618]
[1642924302844,1.6,2491.2,2490.4,1.27980618]
[1642924303045,0.6,2491.2,2490.4,1.27980618]
[1642924303244,1.6,2491.2,2490.4,1.27980618]
[1642924303645,0.6,2491.2,2490.4,1.27980618]
[1642924303846,1.3,2491.2,2490.9,1.41740868]
[1642924304453,0.3,2491.2,2490.4,1.27980618]
[1642924304655,1.3,2491.2,2490.4,1.27980618]
[1642924304852,0.3,2491.2,2490.4,1.27980618]
[1642924305055,1.3,2491.2,2490.4,1.27980618]
[1642924305252,4.3,2491.2,2490.4,1.27980618]
[1642924305456,1.0,2491.1,2490.9,1.39874035]
[1642924305696,1.3,2491.1,2490.9,1.39874035]
[1642924305893,4.3,2491.2,2490.9,1.39874035]
[1642924305894,4.0,2491.2,2490.9,1.39874035]
[1642924306291,4.0,2491.2,2490.9,1.29874035]
[1642924306494,4.0,2491.2,2491.0,5.31643205]
[1642924306693,4.0,2491.2,2491.0,1.40734442]
[1642924309751,4.0,2491.2,2491.0,5.35531991]
[1642924309952,4.0,2491.2,2491.1,3.98307206]
[1642924310152,4.0,2491.2,2491.0,1.98434442]
[1642924312156,4.0,2491.2,2491.1,4.03466174]
[1642924312756,0.41963789,2492.0,2491.2,4.75]
[1642924313107,13.24545459,2492.7,2491.1,4.91166174]
[1642924313108,3.90988327,2492.6,2491.3,5.39555099]
[1642924313297,0.65931388,2492.5,2491.4,0.577]
[1642924313494,0.65931388,2492.5,2491.5,4.56318806]
[1642924313698,0.41951388,2492.5,2491.6,0.577]
[1642924313897,2.73178327,2492.6,2492.4,2.08528384]
[1642924314096,2.73178327,2492.6,2492.4,2.93808384]
[1642924314296,2.27598069,2492.7,2492.4,2.93808384]
[1642924315206,2.27598069,2492.7,2492.4,3.81508384]
[1642924315403,2.27598069,2492.7,2492.4,3.51508384]
[1642924315604,7.98577014,2493.6,2492.5,4.18878843]
[1642924315605,2.27598069,2493.0,2492.5,4.18878843]
[1642924316206,4.0,2492.7,2492.5,4.18878843]
[1642924316404,4.0,2492.7,2492.6,1.15733765]
[1642924316854,5.1989,2493.7,2492.6,1.15733765]
[1642924316855,0.58696567,2493.8,2492.7,4.05]
[1642924317053,0.160956,2494.0,2492.8,5.08020964]
[1642924317452,1.41624726,2493.8,2492.8,5.08020964]
[1642924317653,1.41624726,2493.8,2493.6,1.27588418]
[1642924318055,0.160956,2494.0,2493.6,1.27588418]
[1642924318255,2.27522668,2493.7,2493.6,1.27588418]
[1642924318454,2.27522668,2493.7,2492.8,9.29070964]
[1642924318655,2.27522668,2493.7,2492.8,5.08020964]
[1642924318858,2.27522668,2493.7,2492.8,5.38020964]
[1642924319055,2.27522668,2493.7,2493.5,1.12811862]
[1642924319257,1.87522668,2493.7,2493.5,1.12811862]
[1642924319460,1.160956,2494.0,2492.8,3.9928]
[1642924319760,0.460956,2494.0,2492.8,8.38628756]
[1642924319957,1.160956,2494.0,2492.8,0.3]
[1642924320162,0.3,2493.9,2492.7,0.577]
[1642924320360,0.3,2493.9,2492.8,1.35537692]
[1642924320361,1.49790394,2493.2,2492.8,1.35537692]
[1642924320618,1.45772176,2493.5,2492.9,1.4966172]
[1642924320805,2.05772176,2493.5,2492.8,1.35537692]
[1642924321607,0.02573249,2493.4,2492.8,1.35537692]
[1642924321808,2.05772176,2493.5,2492.7,1.08979168]
[1642924321809,1.47311446,2493.1,2492.7,1.08979168]
[1642924322507,1.47311446,2493.1,2492.0,6.88604708]
[1642924322709,1.49543337,2492.7,2492.4,1.30197351]
[1642924322911,0.3,2493.1,2492.4,1.30197351]
[1642924323112,1.8483,2493.3,2492.4,1.30197351]
[1642924323309,1.5483,2493.3,2492.4,1.30197351]
[1642924323513,1.35177751,2493.0,2492.4,2.48669043]
[1642924323712,1.35177751,2493.0,2491.7,4.8906]
[1642924323917,1.35177751,2493.0,2491.8,4.00811898]
[1642924324110,1.35177751,2493.0,2491.7,3.6463]
[1642924324751,2.56997323,2493.0,2492.7,1.33240475]
[1642924324950,1.0,2493.5,2492.7,1.33240475]
[1642924325152,0.3,2493.5,2492.7,1.33240475]
[1642924325350,1.3,2493.7,2492.7,1.33240475]
[1642924325553,0.59214404,2494.1,2492.7,1.93240475]
[1642924325754,2.27529259,2493.6,2492.8,4.94278108]
[1642924325953,2.27529259,2493.6,2492.9,1.63180609]
[1642924325954,1.7248,2493.5,2492.9,1.63180609]
[1642924326151,1.7248,2493.5,2493.4,2.95891861]
[1642924326350,1.7248,2493.5,2493.4,3.53591861]
[1642924326555,7.1526,2494.6,2493.4,3.53591861]
[1642924327550,1.33482985,2493.7,2493.4,3.53591861]
[1642924327751,7.1526,2494.6,2493.4,2.01549757]
[1642924328200,9.88268585,2494.6,2493.4,2.01549757]
[1642924328802,1.42969959,2493.8,2493.5,1.18934993]
[1642924329004,1.42969959,2493.8,2493.4,1.43849757]
[1642924329205,1.36801166,2494.1,2493.4,1.43849757]
[1642924329808,1.66801166,2494.1,2493.4,1.43849757]
[1642924330309,1.10683868,2493.7,2493.4,2.62949488]
[1642924330609,1.0,2494.0,2493.4,2.62949488]
[1642924331009,1.66801166,2494.1,2493.4,2.62949488]
[1642924331411,1.66801166,2494.1,2493.4,1.43849757]
[1642924332250,1.66801166,2494.1,2492.8,5.55868551]
[1642924332451,1.18825168,2493.5,2493.2,1.54088181]
[1642924332651,1.18825168,2493.5,2492.8,5.55868551]
[1642924332652,1.13825168,2493.5,2492.8,5.55868551]
[1642924332854,1.36801166,2494.1,2492.8,5.55868551]
[1642924333059,1.36801166,2494.1,2492.8,4.9186501]
[1642924333354,2.27513094,2494.0,2492.8,5.00620414]
[1642924333954,3.27513094,2494.0,2492.8,5.00620414]
[1642924334154,1.27008408,2493.4,2493.1,1.25079839]
[1642924334358,3.27513094,2494.0,2493.1,1.25079839]
[1642924334654,1.0,2494.0,2493.3,1.25460848]
[1642924335259,0.01279107,2493.9,2492.5,8.01185494]
[1642924335456,0.01279107,2493.9,2492.5,3.7486]
[1642924335457,0.03886044,2493.9,2492.5,3.7486]
[1642924335903,0.06975448,2493.7,2492.5,3.7486]
[1642924336102,1.39125165,2492.8,2492.6,1.43457538]
[1642924336910,1.0,2493.6,2492.6,1.43457538]
[1642924337304,1.3,2493.6,2492.6,1.43457538]